[Event "*** Titled Tuesday Blitz"]
[Site "Chess.com"]
[Date "2021.04.20"]
[Round "2"]
[White "Superfelix"]
[Black "Pantata007"]
[Result "1/2-1/2"]
[WhiteElo "2448"]
[BlackElo "2247"]
[TimeControl "180+1"]
[EndTime "10:19:10 PDT"]
[Termination "Game drawn by agreement"]

1. e4 {[%clk 0:03:00.9]} 1... e5 {[%clk 0:02:59.7]} 2. Nf3 {[%clk 0:02:54.8]}
2... Nc6 {[%clk 0:02:59.3]} 3. d4 {[%clk 0:02:53.8]} 3... exd4 {[%clk 0:02:57]}
4. Nxd4 {[%clk 0:02:53.8]} 4... Nf6 {[%clk 0:02:56.9]} 5. Nc3 {[%clk 0:02:53.4]}
5... Bb4 {[%clk 0:02:56.3]} 6. Nxc6 {[%clk 0:02:53.8]} 6... bxc6 {[%clk
0:02:57.2]} 7. Bd3 {[%clk 0:02:54.3]} 7... d5 {[%clk 0:02:57.7]} 8. exd5 {[%clk
0:02:55.2]} 8... cxd5 {[%clk 0:02:58.5]} 9. O-O {[%clk 0:02:55.4]} 9... O-O
{[%clk 0:02:58.9]} 10. h3 {[%clk 0:02:55.9]} 10... c6 {[%clk 0:02:58.9]} 11. Qf3
{[%clk 0:02:56.2]} 11... Bd6 {[%clk 0:02:57.4]} 12. Bf4 {[%clk 0:02:56.6]} 12...
Rb8 {[%clk 0:02:55.8]} 13. b3 {[%clk 0:02:56.4]} 13... Re8 {[%clk 0:02:55.7]}
14. Rfe1 {[%clk 0:02:56.6]} 14... Be6 {[%clk 0:02:56]} 15. Bxd6 {[%clk
0:02:55.8]} 15... Qxd6 {[%clk 0:02:55.6]} 16. Qg3 {[%clk 0:02:56.7]} 16... Qxg3
{[%clk 0:02:50]} 17. fxg3 {[%clk 0:02:57.6]} 17... c5 {[%clk 0:02:28.6]} 18. Na4
{[%clk 0:02:52.5]} 18... c4 {[%clk 0:02:27.1]} 19. Bf1 {[%clk 0:02:49.8]} 19...
Nd7 {[%clk 0:02:10.5]} 20. Rad1 {[%clk 0:02:47]} 20... Nb6 {[%clk 0:01:55.6]}
21. Nc5 {[%clk 0:02:44.5]} 21... Rbc8 {[%clk 0:01:47.8]} 22. Nxe6 {[%clk
0:02:41.2]} 22... fxe6 {[%clk 0:01:47.4]} 23. bxc4 {[%clk 0:02:39]} 23... Nxc4
{[%clk 0:01:46.2]} 24. Bxc4 {[%clk 0:02:39]} 24... Rxc4 {[%clk 0:01:43.3]} 25.
Rxd5 {[%clk 0:02:39]} 25... Rxc2 {[%clk 0:01:43.5]} 26. Rd7 {[%clk 0:02:33]}
26... Rxa2 {[%clk 0:01:24.9]} 27. Rc1 {[%clk 0:02:26.7]} 27... Ra5 {[%clk
0:01:13.5]} 28. Rcc7 {[%clk 0:02:25.6]} 28... Rg5 {[%clk 0:01:13.5]} 29. g4
{[%clk 0:02:25.2]} 29... h6 {[%clk 0:00:49.4]} 30. Rxa7 {[%clk 0:02:23.9]} 30...
Rg6 {[%clk 0:00:45.5]} 31. Kh2 {[%clk 0:02:22.8]} 31... e5 {[%clk 0:00:28.9]}
32. Kg3 {[%clk 0:02:14]} 32... e4 {[%clk 0:00:27.9]} 33. Re7 {[%clk 0:02:12.2]}
33... Rxe7 {[%clk 0:00:25.6]} 34. Rxe7 {[%clk 0:02:13.1]} 34... Rf6 {[%clk
0:00:22.3]} 35. Rxe4 {[%clk 0:02:12.9]} 35... Kf7 {[%clk 0:00:22.6]} 36. Ra4
{[%clk 0:02:08.7]} 36... Rb6 {[%clk 0:00:22.7]} 37. Kh4 {[%clk 0:02:06.7]} 37...
Kg6 {[%clk 0:00:21.3]} 38. Rd4 {[%clk 0:02:05.6]} 38... Ra6 {[%clk 0:00:20.6]}
39. Rc4 {[%clk 0:02:05.3]} 39... Rb6 {[%clk 0:00:20.9]} 40. Kg3 {[%clk
0:02:04.6]} 40... Ra6 {[%clk 0:00:19.4]} 41. Kf4 {[%clk 0:02:04.5]} 41... Rf6+
{[%clk 0:00:18.2]} 42. Ke3 {[%clk 0:02:02.5]} 42... Re6+ {[%clk 0:00:18]} 43.
Kf3 {[%clk 0:02:00]} 43... Ra6 {[%clk 0:00:17.9]} 44. g3 {[%clk 0:01:59]} 44...
Ra3+ {[%clk 0:00:17.5]} 45. Kf4 {[%clk 0:01:59.3]} 45... Ra6 {[%clk 0:00:17.7]}
46. Rc5 {[%clk 0:01:58.3]} 46... Ra4+ {[%clk 0:00:16.9]} 47. Kf3 {[%clk
0:01:54.6]} 47... Ra3+ {[%clk 0:00:17.1]} 48. Kf2 {[%clk 0:01:55]} 48... Ra2+
{[%clk 0:00:17.4]} 49. Ke3 {[%clk 0:01:55.4]} 49... Ra3+ {[%clk 0:00:17.8]} 50.
Kf4 {[%clk 0:01:55.9]} 50... Ra4+ {[%clk 0:00:17.5]} 51. Ke5 {[%clk 0:01:56.2]}
51... Ra3 {[%clk 0:00:17.9]} 52. Rc6+ {[%clk 0:01:54.5]} 52... Kh7 {[%clk
0:00:17.4]} 53. h4 {[%clk 0:01:52.1]} 53... Rxg3 {[%clk 0:00:15.7]} 54. Kf4
{[%clk 0:01:52.5]} 54... Rg1 {[%clk 0:00:14.7]} 55. Kf5 {[%clk 0:01:51.5]} 55...
Rf1+ {[%clk 0:00:14]} 56. Ke4 {[%clk 0:01:51.7]} 56... Rg1 {[%clk 0:00:12.8]}
57. Kf3 {[%clk 0:01:51.1]} 57... Rf1+ {[%clk 0:00:13]} 58. Kg3 {[%clk
0:01:51.5]} 58... Rg1+ {[%clk 0:00:13]} 59. Kf3 {[%clk 0:01:51.4]} 59... Rf1+
{[%clk 0:00:13.2]} 60. Kg2 {[%clk 0:01:51.9]} 60... Rf4 {[%clk 0:00:13.2]} 61.
Kg3 {[%clk 0:01:52.2]} 61... Ra4 {[%clk 0:00:13.6]} 62. h5 {[%clk 0:01:49.2]}
62... Rb4 {[%clk 0:00:13.8]} 63. Rd6 {[%clk 0:01:48.9]} 63... Ra4 {[%clk
0:00:14.1]} 64. Rb6 {[%clk 0:01:47.1]} 64... Rc4 {[%clk 0:00:14]} 65. Kf3 {[%clk
0:01:46.6]} 65... Ra4 {[%clk 0:00:13.9]} 66. Re6 {[%clk 0:01:46.2]} 66... Rb4
{[%clk 0:00:13.2]} 67. Re7 {[%clk 0:01:46.6]} 67... Ra4 {[%clk 0:00:12.6]} 68.
Re5 {[%clk 0:01:45.6]} 68... Rb4 {[%clk 0:00:12.5]} 69. Re4 {[%clk 0:01:46.1]}
69... Rb3+ {[%clk 0:00:11.5]} 70. Kf4 {[%clk 0:01:46.2]} 70... Rb7 {[%clk
0:00:11.8]} 71. Kf5 {[%clk 0:01:45.7]} 71... Rf7+ {[%clk 0:00:10.7]} 72. Ke6
{[%clk 0:01:44.6]} 72... Rf6+ {[%clk 0:00:10.4]} 73. Ke7 {[%clk 0:01:44.9]}
73... Rf1 {[%clk 0:00:10.1]} 74. Re5 {[%clk 0:01:43.9]} 74... Rf2 {[%clk
0:00:10.2]} 75. Rf5 {[%clk 0:01:42.4]} 75... Rg2 {[%clk 0:00:09]} 76. Rf4 {[%clk
0:01:42.5]} 76... Rg3 {[%clk 0:00:09.3]} 77. Kf7 {[%clk 0:01:42.7]} 77... Rg2
{[%clk 0:00:08.5]} 78. Ke6 {[%clk 0:01:34.8]} 78... Rg1 {[%clk 0:00:08.3]} 79.
Kf5 {[%clk 0:01:35.1]} 79... Rg2 {[%clk 0:00:08.4]} 80. Re4 {[%clk 0:01:35.1]}
80... Rf2+ {[%clk 0:00:08.6]} 81. Ke5 {[%clk 0:01:35]} 81... Rg2 {[%clk
0:00:08.2]} 82. Rf4 {[%clk 0:01:34.9]} 82... Re2+ {[%clk 0:00:08.3]} 83. Kd4
{[%clk 0:01:35.3]} 83... Rd2+ {[%clk 0:00:08.3]} 84. Ke3 {[%clk 0:01:35.5]}
84... Rg2 {[%clk 0:00:08.2]} 85. Kf3 {[%clk 0:01:35.3]} 85... Rg1 {[%clk
0:00:08.5]} 86. Kf2 {[%clk 0:01:35.3]} 86... Ra1 {[%clk 0:00:08.2]} 87. Kg3
{[%clk 0:01:35.5]} 87... Ra3+ {[%clk 0:00:08.3]} 88. Kh4 {[%clk 0:01:35.4]}
88... Ra5 {[%clk 0:00:08.5]} 89. Rf5 {[%clk 0:01:35.1]} 89... Rxf5 {[%clk
0:00:07.4]} 90. gxf5 {[%clk 0:01:36]} 90... Kg8 {[%clk 0:00:07.7]} 91. Kg3
{[%clk 0:01:35]} 91... Kf7 {[%clk 0:00:07.6]} 92. Kg4 {[%clk 0:01:35.4]} 92...
Ke7 {[%clk 0:00:06.6]} 93. Kf3 {[%clk 0:01:35.3]} 93... Kd6 {[%clk 0:00:06.6]}
94. Ke4 {[%clk 0:01:35.3]} 94... Ke7 {[%clk 0:00:05.9]} 95. Ke3 {[%clk
0:01:35.1]} 95... Kf6 {[%clk 0:00:05.6]} 96. Kf4 {[%clk 0:01:35.3]} 96... Kf7
{[%clk 0:00:05.7]} 97. Ke4 {[%clk 0:01:28.6]} 97... Ke7 {[%clk 0:00:05.7]} 98.
Ke3 {[%clk 0:01:25.6]} 98... Kf6 {[%clk 0:00:05.9]} 99. Kf4 {[%clk 0:01:25.7]}
99... Kf7 {[%clk 0:00:06.3]} 100. Ke5 {[%clk 0:01:25.1]} 100... Ke7 {[%clk
0:00:06.7]} 1/2-1/2

[Event "*** Titled Tuesday Blitz"]
[Site "Chess.com"]
[Date "2021.04.20"]
[Round "2"]
[White "MIJuanReyesRosa"]
[Black "not_najdorfs_player"]
[Result "1-0"]
[WhiteElo "2033"]
[BlackElo "2365"]
[TimeControl "180+1"]
[EndTime "10:19:16 PDT"]
[Termination "MIJuanReyesRosa won by resignation"]

1. d4 {[%clk 0:02:59.3]} 1... Nf6 {[%clk 0:02:58.3]} 2. Nf3 {[%clk 0:02:59]}
2... e6 {[%clk 0:02:55.6]} 3. c4 {[%clk 0:02:59]} 3... b6 {[%clk 0:02:54.9]} 4.
a3 {[%clk 0:02:58.3]} 4... Bb7 {[%clk 0:02:52]} 5. Nc3 {[%clk 0:02:58.1]} 5...
d5 {[%clk 0:02:50.4]} 6. Bg5 {[%clk 0:02:55.9]} 6... Be7 {[%clk 0:02:40.8]} 7.
Bxf6 {[%clk 0:02:52.6]} 7... Bxf6 {[%clk 0:02:40.7]} 8. cxd5 {[%clk 0:02:53.4]}
8... exd5 {[%clk 0:02:38]} 9. g3 {[%clk 0:02:52]} 9... O-O {[%clk 0:02:37.3]}
10. Bg2 {[%clk 0:02:46.5]} 10... Re8 {[%clk 0:02:35.6]} 11. O-O {[%clk
0:02:45.6]} 11... Nd7 {[%clk 0:02:34.8]} 12. Qa4 {[%clk 0:02:28.3]} 12... Nf8
{[%clk 0:02:29.6]} 13. Rfd1 {[%clk 0:02:22.5]} 13... Qd7 {[%clk 0:02:17]} 14.
Rac1 {[%clk 0:02:11.4]} 14... Qc6 {[%clk 0:01:51.6]} 15. e3 {[%clk 0:02:00.2]}
15... Qxa4 {[%clk 0:01:40.8]} 16. Nxa4 {[%clk 0:01:59.6]} 16... c6 {[%clk
0:01:38.1]} 17. b4 {[%clk 0:01:55.8]} 17... Rac8 {[%clk 0:01:26.2]} 18. Bh3
{[%clk 0:01:50.2]} 18... Ne6 {[%clk 0:01:18.4]} 19. Rc2 {[%clk 0:01:46.3]} 19...
Rcd8 {[%clk 0:01:01.8]} 20. Rdc1 {[%clk 0:01:42.9]} 20... Nc7 {[%clk 0:00:54.9]}
21. Bf1 {[%clk 0:01:24.3]} 21... g6 {[%clk 0:00:50.8]} 22. Nb2 {[%clk
0:01:05.7]} 22... Rd6 {[%clk 0:00:49]} 23. b5 {[%clk 0:01:01.1]} 23... Nxb5
{[%clk 0:00:48.4]} 24. Bxb5 {[%clk 0:01:00.5]} 24... cxb5 {[%clk 0:00:49.3]} 25.
Rc7 {[%clk 0:00:57.7]} 25... Ba6 {[%clk 0:00:46.6]} 26. Rxa7 {[%clk 0:00:50.7]}
26... Bc8 {[%clk 0:00:45.7]} 27. Nd3 {[%clk 0:00:45.7]} 27... Bf5 {[%clk
0:00:20.2]} 28. Nde5 {[%clk 0:00:42.3]} 28... Be4 {[%clk 0:00:19.8]} 29. Nxf7
{[%clk 0:00:38.2]} 29... Rde6 {[%clk 0:00:19.4]} 30. Nh6+ {[%clk 0:00:31.6]}
30... Kh8 {[%clk 0:00:18.5]} 31. Nf7+ {[%clk 0:00:24.8]} 31... Kg8 {[%clk
0:00:18.3]} 32. Nh6+ {[%clk 0:00:21.4]} 32... Kh8 {[%clk 0:00:18.5]} 33. Rcc7
{[%clk 0:00:21]} 33... R6e7 {[%clk 0:00:15.6]} 34. Nf7+ {[%clk 0:00:18.7]} 34...
Kg7 {[%clk 0:00:15]} 35. Rxe7 {[%clk 0:00:17.3]} 35... Rxe7 {[%clk 0:00:14.9]}
36. Rxe7 {[%clk 0:00:15.5]} 36... Bxe7 {[%clk 0:00:15.4]} 37. N7g5 {[%clk
0:00:15.3]} 37... Bxa3 {[%clk 0:00:15.9]} 38. Nxe4 {[%clk 0:00:13.2]} 38... dxe4
{[%clk 0:00:16.8]} 39. Nd2 {[%clk 0:00:13.5]} 39... b4 {[%clk 0:00:16.5]} 40.
Nb3 {[%clk 0:00:13.3]} 40... Kf6 {[%clk 0:00:16.3]} 41. Kf1 {[%clk 0:00:13.2]}
41... Ke6 {[%clk 0:00:16.5]} 42. Ke2 {[%clk 0:00:13.5]} 42... Kd5 {[%clk
0:00:17]} 43. Kd2 {[%clk 0:00:12.3]} 43... Kc4 {[%clk 0:00:17.4]} 44. Kc2 {[%clk
0:00:12.5]} 44... g5 {[%clk 0:00:16.5]} 45. Nd2+ {[%clk 0:00:11.7]} 45... Kd5
{[%clk 0:00:16.1]} 46. Kb3 {[%clk 0:00:11.5]} 46... h5 {[%clk 0:00:15.2]} 47.
Nc4 {[%clk 0:00:09.4]} 47... Bc1 {[%clk 0:00:13.9]} 48. Nxb6+ {[%clk 0:00:08.7]}
48... Kc6 {[%clk 0:00:13.3]} 49. Nc4 {[%clk 0:00:08.1]} 49... Kb5 {[%clk
0:00:13.4]} 50. Nd6+ {[%clk 0:00:07.7]} 50... Kc6 {[%clk 0:00:13.2]} 51. Nxe4
{[%clk 0:00:08]} 51... Kd5 {[%clk 0:00:13.3]} 52. Nxg5 {[%clk 0:00:08.1]} 52...
Ba3 {[%clk 0:00:12.1]} 53. Nf3 {[%clk 0:00:05.6]} 53... Ke4 {[%clk 0:00:11.8]}
54. Ng5+ {[%clk 0:00:05.3]} 54... Kf5 {[%clk 0:00:11.8]} 55. Nf7 {[%clk
0:00:05]} 55... Bc1 {[%clk 0:00:11.7]} 56. Nd6+ {[%clk 0:00:04.1]} 56... Ke6
{[%clk 0:00:11.6]} 57. Nb5 {[%clk 0:00:03.2]} 57... Bd2 {[%clk 0:00:11.6]} 58.
Nc7+ {[%clk 0:00:02.5]} 58... Kd6 {[%clk 0:00:11.5]} 59. Ne8+ {[%clk 0:00:02.6]}
59... Ke7 {[%clk 0:00:11.7]} 60. Ng7 {[%clk 0:00:03.5]} 60... h4 {[%clk
0:00:11.3]} 61. Nh5 {[%clk 0:00:03.4]} 61... Be1 {[%clk 0:00:11.8]} 62. gxh4
{[%clk 0:00:02.9]} 62... Bxf2 {[%clk 0:00:12]} 63. Nf4 {[%clk 0:00:02.6]} 63...
Bxe3 {[%clk 0:00:12.1]} 64. Nd5+ {[%clk 0:00:02.4]} 64... Kd6 {[%clk 0:00:12.5]}
65. Nxe3 {[%clk 0:00:03.2]} 65... Ke6 {[%clk 0:00:13.4]} 66. Kxb4 {[%clk
0:00:03.2]} 66... Kd6 {[%clk 0:00:14.3]} 67. Kc4 {[%clk 0:00:03.3]} 67... Kc6
{[%clk 0:00:15.2]} 68. d5+ {[%clk 0:00:03.8]} 68... Kd6 {[%clk 0:00:16.1]} 69.
Kd4 {[%clk 0:00:04.4]} 69... Kd7 {[%clk 0:00:16.3]} 70. h5 {[%clk 0:00:05.2]}
70... Kc7 {[%clk 0:00:17.2]} 71. h6 {[%clk 0:00:05.8]} 71... Kd7 {[%clk
0:00:18.1]} 72. h7 {[%clk 0:00:06.7]} 72... Kd6 {[%clk 0:00:18.8]} 73. h8=Q
{[%clk 0:00:07.6]} 73... Kd7 {[%clk 0:00:19.7]} 74. Qf6 {[%clk 0:00:07.8]} 74...
Kc7 {[%clk 0:00:20.6]} 75. h4 {[%clk 0:00:07.5]} 75... Kb7 {[%clk 0:00:21.5]}
76. h5 {[%clk 0:00:08]} 76... Kc7 {[%clk 0:00:22.4]} 77. h6 {[%clk 0:00:08.8]}
77... Kb7 {[%clk 0:00:23.3]} 78. h7 {[%clk 0:00:09.6]} 78... Kc7 {[%clk
0:00:24.2]} 79. h8=Q {[%clk 0:00:10.1]} 79... Kb7 {[%clk 0:00:25.1]} 80. Qhg7+
{[%clk 0:00:10.4]} 1-0

[Event "*** Titled Tuesday Blitz"]
[Site "Chess.com"]
[Date "2021.04.20"]
[Round "2"]
[White "Srisshhhtea"]
[Black "Artyom_ChessMate"]
[Result "0-1"]
[WhiteElo "2317"]
[BlackElo "2541"]
[TimeControl "180+1"]
[EndTime "10:19:38 PDT"]
[Termination "Artyom_ChessMate won on time"]

1. d4 {[%clk 0:03:00.9]} 1... d5 {[%clk 0:02:59.5]} 2. c4 {[%clk 0:03:00.7]}
2... e6 {[%clk 0:02:56.1]} 3. Nf3 {[%clk 0:02:57.6]} 3... Nf6 {[%clk 0:02:55.4]}
4. g3 {[%clk 0:02:57.4]} 4... Be7 {[%clk 0:02:55.2]} 5. Bg2 {[%clk 0:02:57.3]}
5... O-O {[%clk 0:02:55.8]} 6. O-O {[%clk 0:02:50.2]} 6... dxc4 {[%clk
0:02:56.1]} 7. Qc2 {[%clk 0:02:45.9]} 7... a6 {[%clk 0:02:55.8]} 8. a4 {[%clk
0:02:42.3]} 8... Bd7 {[%clk 0:02:52.4]} 9. Nbd2 {[%clk 0:02:34.6]} 9... Bc6
{[%clk 0:02:36]} 10. Nxc4 {[%clk 0:02:30.2]} 10... b5 {[%clk 0:02:35.9]} 11.
Nce5 {[%clk 0:02:27.1]} 11... Be4 {[%clk 0:02:36]} 12. Qb3 {[%clk 0:02:25.2]}
12... b4 {[%clk 0:02:32]} 13. a5 {[%clk 0:02:21.6]} 13... Nbd7 {[%clk
0:02:25.5]} 14. Nc4 {[%clk 0:02:01.2]} 14... Bd5 {[%clk 0:02:19.6]} 15. Qd3
{[%clk 0:01:35.9]} 15... Be4 {[%clk 0:02:07.5]} 16. Qb3 {[%clk 0:01:33.5]} 16...
c5 {[%clk 0:02:04.9]} 17. Rd1 {[%clk 0:01:02.3]} 17... Qc8 {[%clk 0:01:59.2]}
18. Be3 {[%clk 0:00:53.2]} 18... Qb7 {[%clk 0:01:55.5]} 19. dxc5 {[%clk
0:00:48.5]} 19... Nxc5 {[%clk 0:01:55.7]} 20. Bxc5 {[%clk 0:00:47.5]} 20... Bxc5
{[%clk 0:01:56.6]} 21. Nd6 {[%clk 0:00:42.8]} 21... Bxd6 {[%clk 0:01:51.1]} 22.
Rxd6 {[%clk 0:00:43.7]} 22... Rfd8 {[%clk 0:01:44.4]} 23. Rb6 {[%clk 0:00:41.7]}
23... Qd5 {[%clk 0:01:37.2]} 24. Qxb4 {[%clk 0:00:29]} 24... h6 {[%clk
0:01:27.8]} 25. Rc1 {[%clk 0:00:24.2]} 25... Rac8 {[%clk 0:01:16.2]} 26. Rxc8
{[%clk 0:00:22.2]} 26... Rxc8 {[%clk 0:01:17.1]} 27. Rb8 {[%clk 0:00:18.6]}
27... Qd1+ {[%clk 0:01:16.6]} 28. Bf1 {[%clk 0:00:18]} 28... Rxb8 {[%clk
0:01:16.9]} 29. Qxb8+ {[%clk 0:00:18.8]} 29... Kh7 {[%clk 0:01:17.8]} 30. Nh4
{[%clk 0:00:16.5]} 30... Bd5 {[%clk 0:00:49.8]} 31. Qa7 {[%clk 0:00:15.6]} 31...
Bc4 {[%clk 0:00:47.3]} 32. Qe3 {[%clk 0:00:15.6]} 32... g6 {[%clk 0:00:41.3]}
33. h3 {[%clk 0:00:15.5]} 33... Bb5 {[%clk 0:00:39.2]} 34. Nf3 {[%clk
0:00:14.6]} 34... Nd5 {[%clk 0:00:35.6]} 35. Qe4 {[%clk 0:00:14.7]} 35... Nf6
{[%clk 0:00:34]} 36. Qe3 {[%clk 0:00:15.1]} 36... Nd5 {[%clk 0:00:22.8]} 37. Qa7
{[%clk 0:00:14.8]} 37... Kg8 {[%clk 0:00:18.7]} 38. Nd4 {[%clk 0:00:15.3]} 38...
Bc4 {[%clk 0:00:16.3]} 39. Qb8+ {[%clk 0:00:14.4]} 39... Kh7 {[%clk 0:00:16.5]}
40. Qb7 {[%clk 0:00:12.5]} 40... Qxd4 {[%clk 0:00:15.9]} 41. Qxf7+ {[%clk
0:00:12.4]} 41... Qg7 {[%clk 0:00:16.8]} 42. Qxe6 {[%clk 0:00:12.6]} 42... Qc7
{[%clk 0:00:12.5]} 43. h4 {[%clk 0:00:11]} 43... Nf4 {[%clk 0:00:09.9]} 44. Qe3
{[%clk 0:00:09.9]} 44... Nd5 {[%clk 0:00:09.8]} 45. Qd4 {[%clk 0:00:09.9]} 45...
Ne7 {[%clk 0:00:08.8]} 46. Qf6 {[%clk 0:00:07.9]} 46... Nf5 {[%clk 0:00:05.1]}
47. b4 {[%clk 0:00:08]} 47... Qf7 {[%clk 0:00:05]} 48. Qb6 {[%clk 0:00:07.7]}
48... Bb5 {[%clk 0:00:04.8]} 49. Qc5 {[%clk 0:00:07.7]} 49... h5 {[%clk
0:00:05.2]} 50. Bg2 {[%clk 0:00:07.8]} 50... Nh6 {[%clk 0:00:05.6]} 51. Bf3
{[%clk 0:00:07.9]} 51... Ng4 {[%clk 0:00:05.9]} 52. Kg2 {[%clk 0:00:07.9]} 52...
Qf5 {[%clk 0:00:05.5]} 53. Qe7+ {[%clk 0:00:07.5]} 53... Kg8 {[%clk 0:00:05.8]}
54. Qd8+ {[%clk 0:00:07.5]} 54... Kg7 {[%clk 0:00:05.9]} 55. Qe7+ {[%clk
0:00:07.8]} 55... Qf7 {[%clk 0:00:06.2]} 56. Qc5 {[%clk 0:00:08.4]} 56... Nf6
{[%clk 0:00:06.3]} 57. Qd4 {[%clk 0:00:08.7]} 57... Qe6 {[%clk 0:00:06.4]} 58.
Qa7+ {[%clk 0:00:08.3]} 58... Qf7 {[%clk 0:00:06.4]} 59. Qd4 {[%clk 0:00:08.8]}
59... Qe7 {[%clk 0:00:06.7]} 60. Qc3 {[%clk 0:00:08.5]} 60... Qe6 {[%clk
0:00:05.2]} 61. Qd4 {[%clk 0:00:08.7]} 61... Qe8 {[%clk 0:00:03.3]} 62. e3
{[%clk 0:00:08.6]} 62... Qf7 {[%clk 0:00:04.2]} 63. Qc5 {[%clk 0:00:08.5]} 63...
Qd7 {[%clk 0:00:03.5]} 64. Qe5 {[%clk 0:00:09.1]} 64... Qf5 {[%clk 0:00:03.7]}
65. Qe7+ {[%clk 0:00:08.2]} 65... Kg8 {[%clk 0:00:04.1]} 66. Qd8+ {[%clk
0:00:08.1]} 66... Kh7 {[%clk 0:00:04.7]} 67. Qe7+ {[%clk 0:00:08.2]} 67... Kg8
{[%clk 0:00:04.8]} 68. Qd8+ {[%clk 0:00:08.1]} 68... Ne8 {[%clk 0:00:05.3]} 69.
Bd5+ {[%clk 0:00:06.9]} 69... Kg7 {[%clk 0:00:05.8]} 70. Qe7+ {[%clk 0:00:06.7]}
70... Kh6 {[%clk 0:00:05.1]} 71. e4 {[%clk 0:00:06.8]} 71... Qf6 {[%clk
0:00:04.6]} 72. Qc5 {[%clk 0:00:05.9]} 72... Kg7 {[%clk 0:00:03.5]} 73. Qa7+
{[%clk 0:00:05.3]} 73... Kh6 {[%clk 0:00:02.7]} 74. Qe3+ {[%clk 0:00:05.1]}
74... Kg7 {[%clk 0:00:02.9]} 75. e5 {[%clk 0:00:05.1]} 75... Qe7 {[%clk
0:00:02.9]} 76. e6 {[%clk 0:00:05.2]} 76... Nc7 {[%clk 0:00:03.4]} 77. Bf3
{[%clk 0:00:04.4]} 77... Nxe6 {[%clk 0:00:03.4]} 78. Qc3+ {[%clk 0:00:04.7]}
78... Qf6 {[%clk 0:00:04.3]} 79. Qc8 {[%clk 0:00:03.5]} 79... Nd4 {[%clk
0:00:04.7]} 80. Be4 {[%clk 0:00:03.1]} 80... Ne6 {[%clk 0:00:04.5]} 81. Qb7+
{[%clk 0:00:02.7]} 81... Qf7 {[%clk 0:00:04.8]} 82. Qc8 {[%clk 0:00:02.3]} 82...
Nf8 {[%clk 0:00:05]} 0-1